bitfinex/quotes_SOLUSD_20240813
["timestamp","ask_amount","ask_price","bid_price","bid_amount"]
[1723523400147,0.8285443,144.68,144.65,6.9132]
[1723523400448,0.8285443,144.68,144.66,6.9126]
[1723523400812,0.8285443,144.68,144.67,6.9122]
[1723523401808,0.8285443,144.68,144.64,6.9133]
[1723523402008,0.8285443,144.68,144.65,8.29555919]
[1723523402213,0.8285443,144.68,144.63,22.9411]
[1723523403339,0.8285443,144.68,144.64,6.9136]
[1723523403634,7.7403443,144.68,144.63,6.9141]
[1723523404816,45.0,144.67,144.59,22.9411]
[1723523405019,21.9292,144.66,144.61,6.9151]
[1723523405824,21.9292,144.66,144.62,6.9146]
[1723523406125,21.9292,144.66,144.61,6.915]
[1723523406732,0.8285443,144.68,144.62,1.38286375]
[1723523406944,0.8285443,144.68,144.63,1.38243463]
[1723523407128,0.8285443,144.68,144.66,6.9125]
[1723523407335,0.8285443,144.68,144.67,8.29463216]
[1723523407536,0.8285443,144.68,144.67,6.9122]
[1723523408268,0.8285443,144.68,144.66,6.9126]
[1723523408936,0.8285443,144.68,144.65,6.9132]
[1723523409537,0.8285443,144.68,144.64,6.9136]
[1723523409736,6.9123,144.67,144.62,6.9142]
[1723523410237,6.9123,144.67,144.62,6.9145]
[1723523410432,15.2557,144.67,144.61,6.915]
[1723523410630,15.2557,144.67,144.59,32.2]
[1723523410631,45.0,144.66,144.57,32.2]
[1723523410940,22.1681,144.67,144.62,6.9145]
[1723523411253,22.1681,144.67,144.56,22.5665]
[1723523411254,15.2557,144.67,144.64,6.9135]
[1723523411557,15.2557,144.67,144.59,32.2]
[1723523411558,0.8285443,144.68,144.65,6.9131]
[1723523412053,0.8285443,144.68,144.66,1.38251257]
[1723523412259,0.8285443,144.68,144.66,6.9127]
[1723523412431,0.8285443,144.68,144.63,0.12549]
[1723523412634,0.8285443,144.68,144.63,0.25098]
[1723523412958,0.8285443,144.68,144.66,6.9127]
[1723523414254,0.8285443,144.68,144.67,1.38238295]
[1723523414465,0.8285443,144.68,144.67,8.29458295]
[1723523414763,0.8285443,144.68,144.67,6.9122]
[1723523415351,0.8285443,144.68,144.67,8.41971694]
[1723523415672,0.8285443,144.68,144.67,6.9122]
[1723523416962,0.8285443,144.68,144.67,7.03769]
[1723523417475,0.8285443,144.68,144.67,6.9122]
[1723523418858,0.8285443,144.68,144.63,0.25098]
[1723523419170,0.8285443,144.68,144.67,6.9122]
[1723523419667,0.8285443,144.68,144.63,20.0]
[1723523419842,0.8285443,144.68,144.64,1.38242315]
[1723523420044,0.8285443,144.68,144.62,38.4462]
[1723523420258,0.8285443,144.68,144.64,32.2]
[1723523420449,0.8285443,144.68,144.58,6.441]
[1723523420768,6.9126,144.67,144.63,6.9141]
[1723523420949,0.8285443,144.68,144.66,6.9126]
[1723523421148,0.8285443,144.68,144.61,32.2]
[1723523421149,0.8285443,144.68,144.67,6.9122]
[1723523422362,0.8285443,144.68,144.63,32.2]
[1723523422751,0.8285443,144.68,144.65,6.9131]
[1723523423176,0.8285443,144.68,144.64,6.9136]
[1723523423472,0.8285443,144.68,144.65,6.9132]
[1723523424144,0.8285443,144.68,144.62,0.12549]
[1723523424340,0.8285443,144.68,144.62,0.37647]
[1723523424542,0.8285443,144.68,144.59,32.32549]
[1723523424747,6.9125,144.67,144.62,6.9143]
[1723523425050,6.9125,144.67,144.63,6.9141]
[1723523425299,22.9895443,144.68,144.63,6.9141]
[1723523425450,6.9123,144.67,144.63,6.9141]
[1723523425778,6.9123,144.67,144.6,20.0]
[1723523425779,16.0776443,144.68,144.58,6.441]
[1723523425956,45.0,144.67,144.58,6.441]
[1723523426752,0.25098,144.66,144.55,32.2]
[1723523426980,32.2,144.65,144.57,6.9166]
[1723523427272,45.12549,144.64,144.57,6.9166]
[1723523427477,15.4339,144.61,144.5,6.4648]
[1723523427788,45.12549,144.6,144.5,6.9204]
[1723523427961,6.9163,144.59,144.49,16.5001]
[1723523428159,6.9166,144.58,144.53,6.9189]
[1723523428673,45.12549,144.6,144.46,6.4648]
[1723523428674,0.12549,144.57,144.5,6.92]
[1723523428881,0.25098,144.57,144.5,6.92]
[1723523429174,6.9176,144.56,144.51,6.9198]
[1723523429354,52.04249,144.58,144.52,6.9193]
[1723523429678,45.0,144.58,144.53,6.9187]
[1723523430378,51.9167,144.58,144.53,6.9187]
[1723523430580,6.9171,144.57,144.51,6.9194]
[1723523430873,51.9177,144.56,144.5,6.9203]
[1723523431052,6.9177,144.56,144.5,6.9203]
[1723523431254,6.9171,144.57,144.52,6.9193]
[1723523432272,6.9176,144.56,144.51,6.9198]
[1723523432799,51.918,144.55,144.5,6.9203]
[1723523433080,0.12549,144.57,144.46,38.6648]
[1723523433285,45.0,144.58,144.48,32.2]
[1723523434075,45.0,144.58,144.49,1.38380833]
[1723523434379,6.9174,144.57,144.52,6.9192]
[1723523434882,15.4339,144.61,144.57,6.917]
[1723523435255,6.9137,144.64,144.59,6.916]
[1723523435455,19.11936628,144.65,144.54,38.5562]
[1723523435652,17.2846,144.64,144.54,6.3562]
[1723523435876,17.2846,144.64,144.53,0.25098]
[1723523436380,6.9161,144.59,144.54,6.918]
[1723523436556,6.9155,144.61,144.52,32.2]
[1723523436983,6.9156,144.6,144.52,32.2]
[1723523437491,6.9156,144.6,144.55,6.9179]
[1723523437785,45.0,144.59,144.5,38.5562]
[1723523438000,45.0,144.59,144.51,20.25098]
[1723523438164,45.0,144.59,144.51,20.0]
[1723523438371,6.9166,144.58,144.53,6.9188]
[1723523438557,6.917,144.57,144.52,6.9194]
[1723523440965,29.6444,144.58,144.53,6.9188]
[1723523441167,16.5504,144.58,144.55,6.918]
[1723523441484,16.5504,144.58,144.48,32.2]
[1723523441485,23.0095,144.61,144.56,6.9171]
[1723523441669,45.0,144.6,144.53,6.9186]
[1723523441863,6.9161,144.59,144.53,6.9186]
[1723523442263,16.094,144.61,144.53,1.10364799]
[1723523442480,16.094,144.61,144.58,6.9165]
[1723523442676,16.094,144.61,144.59,6.916]
[1723523442878,16.094,144.61,144.55,1.38318679]
[1723523443080,16.094,144.61,144.54,32.2]
[1723523443391,23.0095,144.61,144.55,1.38328708]
[1723523443570,16.094,144.61,144.53,1.38338585]
[1723523443894,16.094,144.61,144.57,6.9169]
[1723523444095,16.094,144.61,144.52,47.2123]
[1723523444271,6.9157,144.6,144.52,47.2123]
[1723523444473,23.0092,144.61,144.56,6.9171]
[1723523445465,16.094,144.61,144.58,6.9165]
[1723523445669,16.094,144.61,144.57,6.9169]
[1723523445865,23.0092,144.61,144.57,6.9169]
[1723523446288,23.0092,144.61,144.56,6.9174]
[1723523447166,6.9156,144.6,144.55,6.9179]
[1723523447695,16.094,144.61,144.56,1.38338116]
[1723523447896,16.094,144.61,144.57,6.9166]
[1723523448288,16.094,144.61,144.53,0.12549]
[1723523448473,16.094,144.61,144.57,6.9169]
[1723523450273,23.0092,144.61,144.55,6.9176]
[1723523450469,16.094,144.61,144.55,6.9176]
[1723523450686,6.9161,144.59,144.54,6.9183]
[1723523451599,6.9161,144.59,144.55,6.9179]
[1723523451812,6.9157,144.6,144.56,6.9174]
[1723523452285,6.9163,144.59,144.54,6.9181]
[1723523452697,6.9163,144.59,144.55,6.9179]
[1723523452904,6.9163,144.59,144.54,6.9184]
[1723523453274,6.9173,144.57,144.52,6.919]
[1723523453606,6.9167,144.58,144.53,6.9188]
[1723523456403,6.9167,144.58,144.49,16.0692]
[1723523456404,32.32549,144.59,144.49,0.12549]
[1723523456576,6.918,144.55,144.5,6.9202]
[1723523456776,6.918,144.55,144.46,46.01484265]
[1723523456777,6.918,144.55,144.51,6.9198]
[1723523457007,23.3147,144.55,144.51,6.9198]
[1723523457207,23.3147,144.55,144.52,1.38382365]
[1723523457208,16.3967,144.55,144.52,1.38382365]
[1723523457509,6.9171,144.57,144.49,1.38371358]
[1723523458090,6.9171,144.57,144.49,0.12549]
[1723523458405,6.9171,144.57,144.49,0.25098]
[1723523458912,16.3967,144.59,144.55,6.9177]
[1723523459210,6.9167,144.58,144.53,6.9185]
[1723523461010,6.9176,144.56,144.52,6.9193]
[1723523461184,16.3967,144.59,144.53,8.30268295]
[1723523461380,16.3967,144.59,144.53,6.9189]
[1723523461587,16.3967,144.59,144.48,32.2]
[1723523461883,6.9174,144.57,144.53,6.9189]
[1723523462389,6.9174,144.57,144.48,32.2]
[1723523462390,45.0,144.58,144.5,6.9199]
[1723523462591,6.9183,144.55,144.5,6.9199]
[1723523463284,6.919,144.53,144.48,6.921]
[1723523463782,6.9195,144.52,144.47,6.9217]
[1723523464204,6.9195,144.52,144.48,6.9213]
[1723523464810,6.9195,144.52,144.42,63.03492094]
[1723523464811,6.9207,144.5,144.42,95.23492094]
[1723523465018,51.9199,144.51,144.47,6.9217]
[1723523465346,0.12549,144.53,144.48,6.9213]
[1723523465522,51.9185,144.54,144.49,6.9208]
[1723523465690,51.9185,144.54,144.48,6.9212]
[1723523465691,6.919,144.53,144.48,6.9212]
[1723523468026,16.4545,144.55,144.52,6.9194]
[1723523468220,22.9569,144.59,144.54,6.9183]
[1723523468415,16.0405,144.59,144.57,6.917]
[1723523468911,6.9146,144.62,144.57,6.917]
[1723523469121,6.9152,144.61,144.56,6.9175]
[1723523469327,6.9156,144.6,144.55,6.9179]
[1723523469506,0.12549,144.62,144.54,6.9184]
[1723523469718,45.50196,144.62,144.54,6.9184]
[1723523470118,6.9162,144.59,144.55,6.9179]
[1723523470361,6.9147,144.62,144.56,1.38331785]
[1723523470626,6.9147,144.62,144.53,1.38326212]
[1723523471135,16.0405,144.63,144.52,40.37549]
[1723523471802,6.9156,144.6,144.55,6.9175]
[1723523472537,6.9156,144.6,144.56,6.9175]
[1723523473416,6.9156,144.6,144.55,6.9179]
[1723523476426,6.9143,144.63,144.56,1.38315788]
[1723523476725,6.9136,144.65,144.57,0.25098]
[1723523477029,15.9356,144.67,144.57,0.25098]
[1723523477237,15.9356,144.67,144.59,6.916]
[1723523477530,6.9136,144.65,144.57,0.12549]
[1723523477844,15.9356,144.67,144.57,0.50196]
[1723523478547,6.9133,144.65,144.57,0.12549]
[1723523478713,6.9133,144.65,144.6,6.9152]
[1723523479046,0.8285443,144.68,144.61,1.50838145]
[1723523479207,0.8285443,144.68,144.66,6.9123]
[1723523479905,0.8285443,144.68,144.65,6.9132]
[1723523480106,0.8285443,144.68,144.66,8.29498037]
[1723523480352,0.8285443,144.68,144.66,6.9126]
[1723523481043,0.8285443,144.68,144.67,8.4199971]
[1723523481214,0.8285443,144.68,144.67,8.6709771]
[1723523481408,0.8285443,144.68,144.67,8.7964671]
[1723523482316,0.8285443,144.68,144.67,6.9122]
[1723523482948,0.8285443,144.68,144.67,7.16318]
[1723523483248,0.8285443,144.68,144.67,8.54518435]
[1723523483444,0.8285443,144.68,144.67,7.28867]
[1723523483640,0.8285443,144.68,144.67,6.9122]
[1723523484349,0.8285443,144.68,144.62,56.3888]
[1723523484646,0.8285443,144.68,144.62,16.1388]
[1723523485655,0.8285443,144.68,144.61,6.3264]
[1723523486576,0.8285443,144.68,144.64,6.9136]
[1723523486749,0.8285443,144.68,144.63,6.9141]
[1723523486750,7.7403443,144.68,144.63,6.9141]
[1723523487341,0.8285443,144.68,144.64,6.9136]
[1723523488740,0.8285443,144.68,144.65,6.9128]
[1723523488942,0.8285443,144.68,144.66,6.9123]
[1723523489118,0.8285443,144.68,144.67,6.9122]
[1723523489954,0.8285443,144.68,144.67,7.16318]
[1723523490137,0.8285443,144.68,144.67,7.41416]
[1723523490944,0.8285443,144.68,144.67,72.41416]
[1723523491328,0.8285443,144.68,144.67,78.47276]
[1723523495327,0.8285443,144.68,144.67,33.47276]
[1723523496539,0.8285443,144.68,144.67,27.41416]
[1723523496733,0.8285443,144.68,144.67,7.41416]
[1723523498430,0.8285443,144.68,144.67,52.41416]
[1723523498631,6.9066,144.79,144.74,6.9088]
[1723523500583,6.9071,144.78,144.73,6.9093]
[1723523502457,6.9067,144.79,144.74,8.290463]
[1723523502636,6.907,144.78,144.74,1.381763]
[1723523502964,6.9076,144.77,144.72,6.9097]
[1723523503529,6.9091,144.74,144.69,6.9109]
[1723523503935,6.9084,144.76,144.66,40.16]
[1723523504234,6.9076,144.77,144.73,6.9093]
[1723523504474,6.9071,144.78,144.73,6.9093]
[1723523504961,6.9075,144.77,144.72,6.9098]
[1723523505333,0.12549,144.8,144.72,6.9098]
[1723523505548,6.9075,144.77,144.73,6.9094]
[1723523505746,6.9075,144.77,144.72,6.9098]
[1723523506454,6.9079,144.76,144.71,6.9102]
[1723523506630,6.9079,144.76,144.72,6.9098]
[1723523507262,45.50196,144.8,144.73,6.9093]
[1723523507781,6.9075,144.77,144.72,6.9097]
[1723523507927,6.9075,144.77,144.73,6.9093]
[1723523508659,6.9075,144.77,144.72,6.9098]
[1723523509258,0.12549,144.79,144.68,40.16]
[1723523509554,0.12549,144.79,144.69,20.12549]
[1723523509555,6.9073,144.78,144.69,20.12549]
[1723523509855,6.9073,144.78,144.73,6.909]
[1723523510965,6.9075,144.77,144.73,6.909]
[1723523511345,6.9075,144.77,144.72,6.9098]
[1723523511959,6.9075,144.77,144.73,6.9093]
[1723523512135,6.9075,144.77,144.72,6.9098]
[1723523512635,6.9073,144.78,144.73,6.9091]
[1723523513137,6.9066,144.79,144.74,6.9087]
[1723523513334,24.52323579,144.81,144.75,6.9082]
[1723523513335,6.9061,144.8,144.75,6.9082]
[1723523513740,28.6552,144.81,144.76,6.9077]
[1723523513937,28.6552,144.81,144.73,1.38145433]
[1723523514133,6.906,144.8,144.76,6.9079]
[1723523514860,6.906,144.8,144.75,6.9083]
[1723523515242,6.906,144.8,144.72,40.53647]
[1723523515243,6.9076,144.77,144.72,6.9098]
[1723523515459,6.9084,144.76,144.71,6.9102]
[1723523516070,6.9084,144.76,144.72,6.9098]
[1723523516355,6.9084,144.76,144.71,6.9102]
[1723523517363,6.9075,144.77,144.72,6.9098]
[1723523517960,6.9075,144.77,144.73,6.9093]
[1723523518159,51.9069,144.79,144.74,6.9088]
[1723523518457,6.9069,144.79,144.74,6.9088]
[1723523518837,21.7496,144.81,144.74,6.9088]
[1723523519156,6.9079,144.77,144.72,6.9097]
[1723523519359,6.908,144.76,144.72,6.9097]
[1723523519562,6.9086,144.75,144.69,40.28549]
[1723523519745,6.9086,144.75,144.7,20.0]
[1723523519948,6.9079,144.76,144.71,6.9103]
[1723523520138,6.9076,144.77,144.72,6.9097]
[1723523524267,0.12549,144.8,144.71,1.38194453]
[1723523524451,6.9066,144.79,144.74,6.9085]
[1723523524771,45.0,144.78,144.74,6.9085]
[1723523524964,6.9061,144.8,144.75,6.9082]
[1723523525274,6.9061,144.8,144.69,20.0]
[1723523525275,28.6552,144.81,144.72,32.12]
[1723523525567,22.2522,144.81,144.72,32.12]
[1723523525771,22.2522,144.81,144.76,6.9076]
[1723523527179,6.9061,144.8,144.75,6.9084]
[1723523528047,6.9061,144.8,144.76,6.9079]
[1723523528455,22.2522,144.81,144.76,6.9079]
[1723523529295,6.9061,144.8,144.76,6.9079]
[1723523529478,6.9061,144.8,144.75,6.9083]
[1723523530068,22.2522,144.81,144.76,6.9079]
[1723523531375,0.8285443,144.83,144.77,0.25098]
[1723523531556,0.8285443,144.83,144.78,32.12]
[1723523532256,0.8285443,144.83,144.79,1.38098933]
[1723523532448,0.8285443,144.83,144.78,32.12]
[1723523532973,7.7332443,144.83,144.78,6.9066]
[1723523533292,0.8285443,144.83,144.78,32.12]
[1723523533580,0.8285443,144.83,144.79,1.38099029]
[1723523533763,0.8285443,144.83,144.76,32.12]
[1723523534170,7.7332443,144.83,144.78,6.9069]
[1723523534358,7.7332443,144.83,144.79,6.9064]
[1723523534560,7.7332443,144.83,144.78,6.9069]
[1723523534767,6.9051,144.82,144.78,6.9069]
[1723523534961,6.9057,144.81,144.75,1.38129938]
[1723523535166,6.6612,144.82,144.7,6.2905]
[1723523535407,45.0,144.81,144.7,38.4105]
[1723523535558,6.9067,144.79,144.74,6.9087]
[1723523535966,6.9061,144.8,144.75,6.9084]
[1723523537386,6.9061,144.8,144.76,6.9079]
[1723523537914,6.9061,144.8,144.75,6.9084]
[1723523538385,6.9066,144.79,144.74,6.9089]
[1723523538759,6.9061,144.8,144.75,6.9083]
[1723523539786,6.9065,144.79,144.75,6.9083]
[1723523539975,6.9065,144.79,144.73,6.909]
[1723523540173,6.9071,144.78,144.73,6.909]
[1723523540569,6.9065,144.8,144.74,1.38163421]
[1723523540769,45.0,144.81,144.72,32.12]
[1723523540770,51.9056,144.81,144.72,32.12]
[1723523541270,6.78669,144.82,144.74,32.12]
[1723523541271,6.6612,144.82,144.74,32.12]
[1723523541667,13.5666,144.82,144.77,6.9074]
[1723523541998,6.9054,144.82,144.77,6.9074]
[1723523542195,16.0494443,144.83,144.78,6.9066]
[1723523542568,22.9544443,144.83,144.78,6.9066]
[1723523543090,16.0494443,144.83,144.79,8.28779058]
[1723523543301,22.9540443,144.83,144.79,6.9065]
[1723523543478,22.9540443,144.83,144.78,6.907]
[1723523543685,6.9051,144.82,144.76,6.9075]
[1723523544084,16.0494443,144.83,144.75,23.2112]
[1723523544283,6.9061,144.8,144.76,6.9079]
[1723523544479,6.9056,144.81,144.76,6.9079]
[1723523544874,6.9053,144.82,144.75,1.3814108]
[1723523545179,6.9053,144.82,144.77,6.9071]
[1723523545420,22.9541443,144.83,144.78,6.9069]
[1723523545776,22.9541443,144.83,144.79,6.9064]
[1723523546692,0.8285443,144.83,144.79,6.9064]
[1723523546892,0.8285443,144.83,144.8,8.28690681]
[1723523548004,0.8285443,144.83,144.77,6.424]
[1723523548386,0.8285443,144.83,144.78,0.12549]
[1723523548779,0.8285443,144.83,144.8,6.9059]
[1723523549178,0.8285443,144.83,144.82,6.9051]
[1723523550091,0.8285443,144.83,144.81,6.9055]
[1723523550609,0.8285443,144.83,144.82,8.19557409]
[1723523550805,0.8285443,144.83,144.82,6.9051]
[1723523551800,0.8285443,144.83,144.82,8.23958336]
[1723523552108,0.8285443,144.83,144.82,40.35958336]
[1723523552396,0.8285443,144.83,144.82,39.27608]
[1723523552607,0.8285443,144.83,144.82,59.40157]
[1723523552788,0.8285443,144.83,144.82,39.40157]
[1723523553304,0.8285443,144.83,144.82,39.27608]
[1723523553610,0.8285443,144.83,144.82,45.29778]
[1723523553778,0.8285443,144.83,144.82,45.42327]
[1723523553977,0.8285443,144.83,144.82,45.29778]
[1723523554277,0.8285443,144.83,144.82,39.0251]
[1723523554787,0.8285443,144.83,144.82,6.9051]
[1723523555587,0.8285443,144.83,144.82,39.15059]
[1723523555886,0.8285443,144.83,144.82,39.27608]
[1723523556084,6.9002,144.93,144.88,6.902]
[1723523558114,22.287,144.94,144.86,32.12]
[1723523558493,0.8285443,144.97,144.9,32.12]
[1723523558811,0.8285443,144.97,144.91,1.37976357]
[1723523559016,0.8285443,144.97,144.96,6.8984]
[1723523559187,0.8285443,144.97,144.94,6.8989]
[1723523559386,0.8285443,144.97,144.96,6.8984]
[1723523559589,0.8285443,144.97,144.91,21.7867]
[1723523559590,0.8285443,144.97,144.95,6.8988]
[1723523559886,0.8285443,144.97,144.96,6.8984]
[1723523561215,0.8285443,144.97,144.91,21.7867]
[1723523561380,0.8285443,144.97,144.94,6.8989]
[1723523561890,0.8285443,144.97,144.96,6.8984]
[1723523562315,0.8285443,144.97,144.96,8.52780381]
[1723523562606,0.8285443,144.97,144.96,39.14389]
[1723523562805,0.8285443,144.97,144.96,39.0184]
[1723523562979,0.8285443,144.97,144.96,6.8984]
[1723523563180,0.8285443,144.97,144.96,39.14389]
[1723523563401,0.8285443,144.97,144.96,39.52036]
[1723523563687,0.8285443,144.97,144.96,7.14938]
[1723523563894,0.8285443,144.97,144.96,6.8984]
[1723523564088,0.8285443,144.97,144.96,7.02389]
[1723523564309,0.8285443,144.97,144.96,39.52036]
[1723523565308,0.8285443,144.97,144.96,104.52036]
[1723523565889,0.8285443,144.97,144.96,112.39036]
[1723523567411,0.8285443,144.97,144.96,67.39036]
[1723523567619,0.8285443,144.97,144.96,27.40036]
[1723523567812,0.8285443,144.97,144.96,26.8984]
[1723523568008,0.8285443,144.97,144.96,6.8984]
[1723523568802,0.8285443,144.97,144.95,6.8988]
[1723523569116,0.8285443,144.97,144.88,39.99]
[1723523569504,7.7265443,144.97,144.92,6.9002]
[1723523569714,0.8285443,144.97,144.93,6.8998]
[1723523570013,0.8285443,144.97,144.89,6.9016]
[1723523570322,0.8285443,144.97,144.84,46.625]
[1723523570323,6.8993,144.95,144.84,46.625]
[1723523570503,6.8993,144.95,144.89,6.9016]
[1723523570709,6.8985,144.96,144.91,6.9007]
[1723523571622,0.8285443,144.97,144.95,6.8988]
[1723523571830,0.8285443,144.97,144.94,6.8993]
[1723523572000,0.8285443,144.97,144.84,46.625]
[1723523572001,0.8285443,144.97,144.86,39.99]
[1723523572330,0.8285443,144.97,144.94,6.8993]
[1723523572497,0.8285443,144.97,144.93,6.8998]
[1723523573025,0.8285443,144.97,144.88,39.99]
[1723523573324,0.8285443,144.97,144.89,0.25098]
[1723523573521,0.8285443,144.97,144.94,6.8993]
[1723523573721,7.7269443,144.97,144.91,6.9004]
[1723523573936,7.7269443,144.97,144.92,6.9003]
[1723523574094,6.8985,144.96,144.91,6.9008]
[1723523574722,7.7265443,144.97,144.92,6.9002]
[1723523575901,0.8285443,144.97,144.93,6.8994]
[1723523577098,0.8285443,144.97,144.95,6.8988]
[1723523577523,0.8285443,144.97,144.94,6.8993]
[1723523577827,0.8285443,144.97,144.93,6.8998]
[1723523578028,0.8285443,144.97,144.88,40.11549]
[1723523578029,7.7266443,144.97,144.92,6.8999]
[1723523578734,0.8285443,144.97,144.95,6.8988]
[1723523578923,0.8285443,144.97,144.88,40.11549]
[1723523579312,0.8285443,144.97,144.92,6.8999]
[1723523579623,7.7266443,144.97,144.92,6.8999]
[1723523580311,6.8993,144.95,144.87,20.12549]
[1723523580507,0.8285443,144.97,144.9,6.9012]
[1723523580704,6.899,144.95,144.91,6.9007]
[1723523581026,0.8285443,144.97,144.87,20.0]
[1723523581328,7.7265443,144.97,144.92,6.9002]
[1723523581531,0.8285443,144.97,144.93,1.37993914]
[1723523581714,0.8285443,144.97,144.95,6.8988]
[1723523582029,0.8285443,144.97,144.89,39.99]
[1723523582629,0.8285443,144.97,144.93,6.8997]
[1723523583621,0.8285443,144.97,144.88,0.25098]
[1723523583916,0.8285443,144.97,144.94,6.8993]
[1723523584506,7.7265443,144.97,144.88,0.25098]
[1723523584720,15.7389,144.96,144.84,6.635]
[1723523584932,78.11149,144.96,144.84,6.635]
[1723523585133,6.9002,144.93,144.88,6.9022]
[1723523586713,6.8994,144.94,144.89,6.9015]
[1723523586913,6.8989,144.95,144.9,6.9009]
[1723523587135,6.8995,144.94,144.85,0.12549]
[1723523587335,6.8995,144.94,144.89,6.9016]
[1723523587927,15.7389,144.96,144.91,6.9007]
[1723523588230,15.7389,144.96,144.9,6.9011]
[1723523588632,6.899,144.95,144.9,6.9011]
[1723523588919,6.8994,144.94,144.89,6.9016]
[1723523589133,15.7389,144.96,144.85,0.12549]
[1723523589332,15.7389,144.96,144.93,6.8997]
[1723523589550,15.7389,144.96,144.94,6.8993]
[1723523590054,15.7389,144.96,144.93,6.8998]
[1723523590416,0.8285443,144.97,144.94,6.8992]
[1723523590629,0.8285443,144.97,144.89,39.99]
[1723523590630,0.8285443,144.97,144.91,39.99]
[1723523590864,0.8285443,144.97,144.96,6.8984]
[1723523591514,0.8285443,144.97,144.91,39.99]
[1723523591718,0.8285443,144.97,144.9,0.25098]
[1723523592015,0.8285443,144.97,144.91,0.37647]
[1723523592640,0.8285443,144.97,144.91,0.25098]
[1723523593033,0.8285443,144.97,144.96,6.8984]
[1723523593642,0.8285443,144.97,144.95,6.8988]
[1723523594343,0.8285443,144.97,144.93,6.8995]
[1723523594548,0.8285443,144.97,144.9,20.12549]
[1723523595041,0.8285443,144.97,144.94,6.8989]
[1723523595462,0.8285443,144.97,144.9,20.0]
[1723523595655,7.7268443,144.97,144.92,6.9002]
[1723523596243,7.7268443,144.97,144.84,31.62835397]
[1723523596244,6.899,144.95,144.9,6.9012]
[1723523596542,6.8994,144.94,144.89,6.9017]
[1723523596738,6.8989,144.95,144.9,6.9012]
[1723523596947,6.8985,144.96,144.91,6.9007]
[1723523597247,0.8285443,144.97,144.93,6.8995]
[1723523597440,0.8285443,144.97,144.87,32.04]
[1723523597441,0.8285443,144.97,144.91,6.9004]
[1723523597660,0.8285443,144.97,144.9,6.9012]
[1723523597831,6.9009,144.91,144.84,13.82537836]
[1723523598419,22.7236,144.92,144.87,6.9027]
[1723523598625,22.7236,144.92,144.89,6.9016]
[1723523598626,15.8233,144.92,144.89,6.9016]
[1723523598946,15.8233,144.92,144.84,13.82537836]
[1723523599145,15.8233,144.92,144.88,6.9018]
[1723523599349,22.7239,144.92,144.84,7.19037836]
[1723523600650,22.7239,144.92,144.81,55.3291]
[1723523600941,22.7239,144.92,144.88,6.9022]
[1723523600942,15.8233,144.92,144.88,6.9022]
[1723523601648,22.7238,144.92,144.87,6.9026]
[1723523602065,15.8233,144.92,144.88,6.9022]
[1723523602355,15.8233,144.92,144.9,6.9011]
[1723523602733,15.8233,144.92,144.89,6.9016]
[1723523602957,15.8233,144.92,144.9,6.9012]
[1723523604256,15.8233,144.92,144.89,6.9016]
[1723523605947,15.8233,144.92,144.9,6.9012]
[1723523606363,15.8233,144.92,144.89,6.9017]
[1723523606658,0.8285443,144.97,144.85,40.07]
[1723523606659,15.0409,144.95,144.86,0.12549]
[1723523606960,15.0409,144.95,144.86,20.25098]
[1723523607260,21.9401,144.95,144.86,20.12549]
[1723523607458,15.0409,144.95,144.86,20.0]
[1723523607763,6.8995,144.94,144.89,6.9013]
[1723523607937,6.9,144.93,144.88,6.9021]
[1723523608437,6.9,144.93,144.89,6.9016]
[1723523608642,6.8994,144.94,144.89,6.9016]
[1723523609260,6.8994,144.94,144.84,0.12549]
[1723523609261,21.9398,144.95,144.9,6.9012]
[1723523609758,6.9,144.93,144.88,6.9021]
[1723523610465,6.9,144.93,144.89,6.9017]